[Event "Late-Titled-Tuesday-Blitz-June-25-2024"]
[Site "Chess.com"]
[Date "2024.06.25"]
[Round "6"]
[White "HansOnTwitch"]
[Black "MyDream003"]
[Result "1-0"]
[WhiteElo "3110"]
[BlackElo "2780"]
[TimeControl "180+1"]
[EndTime "15:05:42 PDT"]
[Termination "HansOnTwitch won on time"]

1. e4 {[%clk 0:03:00.9]} 1... e5 {[%clk 0:02:59.8]} 2. Nf3 {[%clk 0:03:00.1]}
2... Nc6 {[%clk 0:03:00]} 3. Bc4 {[%clk 0:03:00.7]} 3... Bc5 {[%clk 0:02:59.5]}
4. d3 {[%clk 0:03:00.3]} 4... Nf6 {[%clk 0:02:58.3]} 5. O-O {[%clk 0:03:00.9]}
5... d6 {[%clk 0:02:58.4]} 6. c3 {[%clk 0:03:01.2]} 6... a6 {[%clk 0:02:57.4]}
7. Re1 {[%clk 0:03:01.7]} 7... Ba7 {[%clk 0:02:57.2]} 8. Nbd2 {[%clk 0:03:02.2]}
8... h6 {[%clk 0:02:56.6]} 9. Nf1 {[%clk 0:03:02.6]} 9... O-O {[%clk 0:02:56]}
10. h3 {[%clk 0:03:03.3]} 10... Re8 {[%clk 0:02:53.1]} 11. Ng3 {[%clk
0:03:01.7]} 11... Be6 {[%clk 0:02:52.6]} 12. Bxe6 {[%clk 0:02:59.9]} 12... Rxe6
{[%clk 0:02:52.5]} 13. b4 {[%clk 0:02:51.3]} 13... d5 {[%clk 0:02:49.8]} 14. Qb3
{[%clk 0:02:41.5]} 14... Qd7 {[%clk 0:02:42.9]} 15. a4 {[%clk 0:02:41.3]} 15...
dxe4 {[%clk 0:01:57.3]} 16. dxe4 {[%clk 0:02:40.5]} 16... b5 {[%clk 0:01:57.8]}
17. axb5 {[%clk 0:02:29.9]} 17... axb5 {[%clk 0:01:58.7]} 18. Be3 {[%clk
0:02:30.3]} 18... Ree8 {[%clk 0:01:56.8]} 19. Red1 {[%clk 0:02:29.4]} 19... Qc8
{[%clk 0:01:50.2]} 20. Bxa7 {[%clk 0:02:27.3]} 20... Rxa7 {[%clk 0:01:50.2]} 21.
Rxa7 {[%clk 0:02:26.4]} 21... Nxa7 {[%clk 0:01:51.1]} 22. Qa2 {[%clk 0:02:19.3]}
22... Qb7 {[%clk 0:01:42.8]} 23. Nh4 {[%clk 0:02:08.3]} 23... Nc8 {[%clk
0:01:31.2]} 24. Nhf5 {[%clk 0:02:03]} 24... Nd6 {[%clk 0:01:17.8]} 25. f3 {[%clk
0:01:36.4]} 25... Nc4 {[%clk 0:01:11.5]} 26. Qf2 {[%clk 0:01:29.8]} 26... Qb6
{[%clk 0:01:07.6]} 27. Qxb6 {[%clk 0:01:26.6]} 27... Nxb6 {[%clk 0:01:08.5]} 28.
Nf1 {[%clk 0:01:20.7]} 28... Ra8 {[%clk 0:01:02.7]} 29. Ne7+ {[%clk 0:01:13.6]}
29... Kf8 {[%clk 0:01:02.6]} 30. Nc6 {[%clk 0:01:14.2]} 30... Nfd7 {[%clk
0:00:26.3]} 31. Na5 {[%clk 0:01:10.2]} 31... f6 {[%clk 0:00:24.8]} 32. Ne3
{[%clk 0:01:10.2]} 32... Kf7 {[%clk 0:00:23.3]} 33. Nd5 {[%clk 0:01:04.4]} 33...
Rc8 {[%clk 0:00:23.4]} 34. Nc6 {[%clk 0:00:59.7]} 34... Ke6 {[%clk 0:00:20.1]}
35. h4 {[%clk 0:00:52.3]} 35... Nxd5 {[%clk 0:00:14.7]} 36. Rxd5 {[%clk
0:00:50.8]} 36... Ra8 {[%clk 0:00:13.7]} 37. Rxb5 {[%clk 0:00:45.3]} 37... Ra1+
{[%clk 0:00:13.7]} 38. Kh2 {[%clk 0:00:44.9]} 38... Nb6 {[%clk 0:00:14.6]} 39.
Na5 {[%clk 0:00:40.9]} 39... Rc1 {[%clk 0:00:10.4]} 40. c4 {[%clk 0:00:40.2]}
40... Kd7 {[%clk 0:00:07.7]} 41. Rc5 {[%clk 0:00:33]} 41... Na4 {[%clk
0:00:06.6]} 42. Rd5+ {[%clk 0:00:33.2]} 42... Kc8 {[%clk 0:00:07]} 43. Rd2
{[%clk 0:00:27.8]} 43... Nc3 {[%clk 0:00:06]} 44. Nc6 {[%clk 0:00:26.8]} 44...
Kb7 {[%clk 0:00:05.1]} 45. Nd8+ {[%clk 0:00:26.1]} 45... Ka7 {[%clk 0:00:04.3]}
46. Ne6 {[%clk 0:00:27]} 46... Nd1 {[%clk 0:00:02.7]} 47. c5 {[%clk 0:00:20.5]}
47... Ne3 {[%clk 0:00:03]} 48. Rd7 {[%clk 0:00:20.3]} 48... Nf1+ {[%clk
0:00:02.3]} 49. Kh3 {[%clk 0:00:20.4]} 49... Ne3 {[%clk 0:00:02.8]} 50. Rxc7+
{[%clk 0:00:19.3]} 50... Ka6 {[%clk 0:00:03.3]} 51. Rxg7 {[%clk 0:00:19.5]}
51... h5 {[%clk 0:00:03.2]} 52. Nc7+ {[%clk 0:00:16.8]} 52... Kb7 {[%clk
0:00:02]} 53. Nd5+ {[%clk 0:00:17.7]} 1-0

[Event "Late-Titled-Tuesday-Blitz-June-25-2024"]
[Site "Chess.com"]
[Date "2024.06.25"]
[Round "6"]
[White "Eloist"]
[Black "Connectedcloud"]
[Result "0-1"]
[WhiteElo "2454"]
[BlackElo "2334"]
[TimeControl "180+1"]
[EndTime "15:05:42 PDT"]
[Termination "Connectedcloud won on time"]

1. e4 {[%clk 0:03:00.9]} 1... e5 {[%clk 0:02:58.3]} 2. Bc4 {[%clk 0:03:00.1]}
2... Bc5 {[%clk 0:02:56.9]} 3. Nf3 {[%clk 0:02:59.6]} 3... Nc6 {[%clk
0:02:56.4]} 4. c3 {[%clk 0:02:59.4]} 4... Nf6 {[%clk 0:02:55.9]} 5. d3 {[%clk
0:02:59.5]} 5... d6 {[%clk 0:02:55.1]} 6. O-O {[%clk 0:02:59.2]} 6... O-O {[%clk
0:02:55.3]} 7. Nbd2 {[%clk 0:02:53.4]} 7... a6 {[%clk 0:02:51.8]} 8. b4 {[%clk
0:02:49.1]} 8... Ba7 {[%clk 0:02:51.6]} 9. a4 {[%clk 0:02:47.7]} 9... Ne7 {[%clk
0:02:50.7]} 10. Re1 {[%clk 0:02:45.9]} 10... Ng6 {[%clk 0:02:49.5]} 11. Bb3
{[%clk 0:02:43.2]} 11... c6 {[%clk 0:02:46.2]} 12. Nf1 {[%clk 0:02:38.4]} 12...
h6 {[%clk 0:02:39.5]} 13. Ng3 {[%clk 0:02:37.8]} 13... Be6 {[%clk 0:02:38.7]}
14. Bxe6 {[%clk 0:02:35.7]} 14... fxe6 {[%clk 0:02:37.5]} 15. d4 {[%clk
0:02:30.5]} 15... Qe7 {[%clk 0:02:28.7]} 16. h3 {[%clk 0:02:17.9]} 16... exd4
{[%clk 0:02:25]} 17. cxd4 {[%clk 0:02:16]} 17... d5 {[%clk 0:02:03.4]} 18. e5
{[%clk 0:02:08.9]} 18... Nh7 {[%clk 0:02:01.5]} 19. Ne2 {[%clk 0:01:48.8]} 19...
Rxf3 {[%clk 0:01:58.5]} 20. gxf3 {[%clk 0:01:48.2]} 20... Nh4 {[%clk 0:01:57.7]}
21. Ng3 {[%clk 0:01:36.1]} 21... Rf8 {[%clk 0:01:57.1]} 22. f4 {[%clk
0:01:32.9]} 22... Qxb4 {[%clk 0:01:39.3]} 23. Ba3 {[%clk 0:01:10]} 23... Qc3
{[%clk 0:01:34]} 24. Re3 {[%clk 0:00:55.6]} 24... Qxd4 {[%clk 0:01:24]} 25. Bxf8
{[%clk 0:00:55.3]} 25... Nxf8 {[%clk 0:01:19.4]} 26. Qxd4 {[%clk 0:00:36.5]}
26... Bxd4 {[%clk 0:01:19.3]} 27. Rb1 {[%clk 0:00:33.2]} 27... Bxe3 {[%clk
0:01:15.1]} 28. fxe3 {[%clk 0:00:33.7]} 28... b5 {[%clk 0:01:10.8]} 29. axb5
{[%clk 0:00:32.6]} 29... axb5 {[%clk 0:01:11]} 30. Rc1 {[%clk 0:00:31.1]} 30...
Nf3+ {[%clk 0:01:07.6]} 31. Kf2 {[%clk 0:00:30.4]} 31... Nd2 {[%clk 0:01:07.7]}
32. Rxc6 {[%clk 0:00:29.9]} 32... Nc4 {[%clk 0:01:07]} 33. Rc7 {[%clk
0:00:27.2]} 33... g6 {[%clk 0:00:59.7]} 34. Rb7 {[%clk 0:00:25.6]} 34... Na3
{[%clk 0:00:58.8]} 35. h4 {[%clk 0:00:17.2]} 35... h5 {[%clk 0:00:56.2]} 36. Ne2
{[%clk 0:00:16.9]} 36... Nh7 {[%clk 0:00:52.5]} 37. Nd4 {[%clk 0:00:16.4]} 37...
Nf8 {[%clk 0:00:51.1]} 38. Nxb5 {[%clk 0:00:16.2]} 38... Nc4 {[%clk 0:00:51.7]}
39. Nd4 {[%clk 0:00:15.3]} 39... Nd2 {[%clk 0:00:49.7]} 40. Re7 {[%clk
0:00:13.9]} 40... Ne4+ {[%clk 0:00:49.9]} 41. Kf3 {[%clk 0:00:12.8]} 41... Nc5
{[%clk 0:00:48.9]} 42. Rc7 {[%clk 0:00:11.2]} 42... Ne4 {[%clk 0:00:47.6]} 43.
Nc6 {[%clk 0:00:08.5]} 43... Nd2+ {[%clk 0:00:44.5]} 44. Ke2 {[%clk 0:00:08.1]}
44... Ne4 {[%clk 0:00:44.6]} 45. Ne7+ {[%clk 0:00:08]} 45... Kh8 {[%clk
0:00:44.7]} 46. Nc8 {[%clk 0:00:07.7]} 46... Kg8 {[%clk 0:00:43.8]} 47. Nd6
{[%clk 0:00:07.7]} 47... Ng3+ {[%clk 0:00:42.4]} 48. Kf3 {[%clk 0:00:07.4]}
48... Nf5 {[%clk 0:00:42.4]} 49. Nxf5 {[%clk 0:00:07.6]} 49... gxf5 {[%clk
0:00:43.3]} 50. Ke2 {[%clk 0:00:07.6]} 50... Kh8 {[%clk 0:00:42.2]} 51. Kd3
{[%clk 0:00:07.9]} 51... Kg8 {[%clk 0:00:42.4]} 52. Kd4 {[%clk 0:00:08.2]} 52...
Ng6 {[%clk 0:00:42.5]} 53. Kc5 {[%clk 0:00:03.4]} 53... Nxh4 {[%clk 0:00:41.2]}
54. Kd6 {[%clk 0:00:03.9]} 54... Ng2 {[%clk 0:00:31.7]} 55. Kxe6 {[%clk
0:00:04.2]} 55... Nxe3 {[%clk 0:00:32.1]} 56. Rd7 {[%clk 0:00:02.5]} 56... h4
{[%clk 0:00:31.5]} 57. Kf6 {[%clk 0:00:02.3]} 57... h3 {[%clk 0:00:30.3]} 58.
Kg6 {[%clk 0:00:01.6]} 58... Kf8 {[%clk 0:00:30.9]} 59. Rh7 {[%clk 0:00:01.5]}
59... Ng2 {[%clk 0:00:28.2]} 0-1

[Event "Late-Titled-Tuesday-Blitz-June-25-2024"]
[Site "Chess.com"]
[Date "2024.06.25"]
[Round "6"]
[White "MuhittinBuker"]
[Black "dosto07"]
[Result "1-0"]
[WhiteElo "2256"]
[BlackElo "2435"]
[TimeControl "180+1"]
[EndTime "15:05:42 PDT"]
[Termination "MuhittinBuker won by checkmate"]

1. d4 {[%clk 0:03:00.9]} 1... d5 {[%clk 0:02:59.3]} 2. c4 {[%clk 0:03:00.2]}
2... dxc4 {[%clk 0:03:00.2]} 3. e3 {[%clk 0:02:59.1]} 3... Nf6 {[%clk
0:03:00.7]} 4. Bxc4 {[%clk 0:02:58.9]} 4... e6 {[%clk 0:03:01.6]} 5. Nf3 {[%clk
0:02:58.4]} 5... a6 {[%clk 0:03:02.5]} 6. O-O {[%clk 0:02:57.9]} 6... b5 {[%clk
0:03:00.9]} 7. Bd3 {[%clk 0:02:58.4]} 7... Bb7 {[%clk 0:03:01.6]} 8. Nc3 {[%clk
0:02:58]} 8... c5 {[%clk 0:02:59.3]} 9. dxc5 {[%clk 0:02:57.2]} 9... Bxc5 {[%clk
0:02:58.6]} 10. Be2 {[%clk 0:02:56]} 10... Nbd7 {[%clk 0:02:57]} 11. Qc2 {[%clk
0:02:56]} 11... Rc8 {[%clk 0:02:55.2]} 12. Rd1 {[%clk 0:02:53.5]} 12... b4
{[%clk 0:02:45.2]} 13. Na4 {[%clk 0:02:52]} 13... Bxe3 {[%clk 0:02:40.4]} 14.
Qb3 {[%clk 0:02:44.2]} 14... Bxc1 {[%clk 0:02:37.1]} 15. Raxc1 {[%clk
0:02:43.6]} 15... Rxc1 {[%clk 0:02:34.8]} 16. Rxc1 {[%clk 0:02:44.4]} 16... O-O
{[%clk 0:02:34.9]} 17. Qxb4 {[%clk 0:02:43.7]} 17... Bxf3 {[%clk 0:02:18.4]} 18.
Bxf3 {[%clk 0:02:40.5]} 18... Ne5 {[%clk 0:02:18.4]} 19. Be2 {[%clk 0:02:38.5]}
19... Nd3 {[%clk 0:02:15]} 20. Bxd3 {[%clk 0:02:35.5]} 20... Qxd3 {[%clk
0:02:15.5]} 21. h3 {[%clk 0:02:29.2]} 21... h6 {[%clk 0:02:13.5]} 22. Nc5 {[%clk
0:02:27.5]} 22... Qd5 {[%clk 0:01:57.4]} 23. Nxa6 {[%clk 0:02:12.4]} 23... Qxa2
{[%clk 0:01:57.1]} 24. Nc5 {[%clk 0:02:07.4]} 24... Nd5 {[%clk 0:01:52]} 25. Qa3
{[%clk 0:02:01]} 25... Ra8 {[%clk 0:01:46.1]} 26. Qxa2 {[%clk 0:01:49.1]} 26...
Rxa2 {[%clk 0:01:45.8]} 27. Rb1 {[%clk 0:01:48]} 27... Ra5 {[%clk 0:01:25.7]}
28. b4 {[%clk 0:01:40.2]} 28... Rb5 {[%clk 0:01:20.9]} 29. Nd3 {[%clk
0:01:40.4]} 29... f6 {[%clk 0:01:20.7]} 30. Kf1 {[%clk 0:01:36.8]} 30... e5
{[%clk 0:01:20.9]} 31. f3 {[%clk 0:01:36.8]} 31... Kf7 {[%clk 0:01:19.6]} 32.
Ke1 {[%clk 0:01:32.4]} 32... Ke6 {[%clk 0:01:15.8]} 33. Kd2 {[%clk 0:01:32.9]}
33... f5 {[%clk 0:01:11.6]} 34. Re1 {[%clk 0:01:02.3]} 34... Nc7 {[%clk
0:00:52.2]} 35. Kc3 {[%clk 0:00:59.8]} 35... Kd6 {[%clk 0:00:41.6]} 36. Kc4
{[%clk 0:00:56.9]} 36... Rd5 {[%clk 0:00:38.6]} 37. Nc5 {[%clk 0:00:50.1]} 37...
Rd4+ {[%clk 0:00:35.2]} 38. Kb3 {[%clk 0:00:49.8]} 38... Nd5 {[%clk 0:00:29.7]}
39. Na6 {[%clk 0:00:46.8]} 39... e4 {[%clk 0:00:25.7]} 40. fxe4 {[%clk
0:00:46.3]} 40... fxe4 {[%clk 0:00:26.3]} 41. b5 {[%clk 0:00:43.8]} 41... e3
{[%clk 0:00:24.2]} 42. Rc1 {[%clk 0:00:35]} 42... Rd2 {[%clk 0:00:21.1]} 43.
Rc6+ {[%clk 0:00:30]} 43... Kd7 {[%clk 0:00:21.4]} 44. Nc5+ {[%clk 0:00:29.1]}
44... Ke7 {[%clk 0:00:20]} 45. Re6+ {[%clk 0:00:27.9]} 45... Kf7 {[%clk
0:00:20]} 46. Re5 {[%clk 0:00:22.5]} 46... Nc7 {[%clk 0:00:16.5]} 47. b6 {[%clk
0:00:21.3]} 47... Nd5 {[%clk 0:00:12.9]} 48. b7 {[%clk 0:00:19.1]} 48... Rd1
{[%clk 0:00:12.2]} 49. Kc2 {[%clk 0:00:16.8]} 49... Rd4 {[%clk 0:00:09.4]} 50.
b8=Q {[%clk 0:00:12.8]} 50... Nb4+ {[%clk 0:00:10.3]} 51. Kc3 {[%clk 0:00:11.2]}
51... Nc6 {[%clk 0:00:11.2]} 52. Qc7+ {[%clk 0:00:09.8]} 52... Kf6 {[%clk
0:00:11.3]} 53. Re6+ {[%clk 0:00:09.1]} 53... Kf5 {[%clk 0:00:11.7]} 54. Qxc6
{[%clk 0:00:08.6]} 54... Rf4 {[%clk 0:00:10.6]} 55. Qd5# {[%clk 0:00:06.9]} 1-0

[Event "Late-Titled-Tuesday-Blitz-June-25-2024"]
[Site "Chess.com"]
[Date "2024.06.25"]
[Round "6"]
[White "chess_sharparchitect"]
[Black "GMsKoRPioN"]
[Result "1-0"]
[WhiteElo "2346"]
[BlackElo "2594"]
[TimeControl "180+1"]
[EndTime "15:05:42 PDT"]
[Termination "chess_sharparchitect won by checkmate"]

1. c4 {[%clk 0:03:00.9]} 1... d6 {[%clk 0:03:00.9]} 2. Nc3 {[%clk 0:02:59.6]}
2... g6 {[%clk 0:03:01.8]} 3. d4 {[%clk 0:02:57.9]} 3... Bg7 {[%clk 0:03:02.5]}
4. e4 {[%clk 0:02:57.6]} 4... Nf6 {[%clk 0:03:03]} 5. h3 {[%clk 0:02:57]} 5...
O-O {[%clk 0:03:03.3]} 6. Be3 {[%clk 0:02:57.4]} 6... e5 {[%clk 0:03:03.7]} 7.
d5 {[%clk 0:02:57.2]} 7... a5 {[%clk 0:03:03]} 8. Nge2 {[%clk 0:02:47.5]} 8...
Na6 {[%clk 0:02:56.5]} 9. g4 {[%clk 0:02:46.1]} 9... Nc5 {[%clk 0:02:55.7]} 10.
Ng3 {[%clk 0:02:44.8]} 10... Nfd7 {[%clk 0:02:52.1]} 11. Bg2 {[%clk 0:02:13.4]}
11... b6 {[%clk 0:02:45.1]} 12. h4 {[%clk 0:02:03.2]} 12... Nb8 {[%clk
0:02:27.6]} 13. h5 {[%clk 0:01:32.3]} 13... c6 {[%clk 0:02:27]} 14. Qd2 {[%clk
0:01:23.1]} 14... Bxg4 {[%clk 0:02:23.2]} 15. f3 {[%clk 0:01:13.6]} 15... Bc8
{[%clk 0:02:19.3]} 16. hxg6 {[%clk 0:01:09.2]} 16... fxg6 {[%clk 0:02:19.1]} 17.
O-O-O {[%clk 0:01:08.5]} 17... cxd5 {[%clk 0:02:08.9]} 18. Qxd5+ {[%clk
0:01:06.4]} 18... Be6 {[%clk 0:02:08]} 19. Qxa8 {[%clk 0:01:06.4]} 19... Bxc4
{[%clk 0:02:07.4]} 20. Nd5 {[%clk 0:00:43.3]} 20... Bxa2 {[%clk 0:01:55.4]} 21.
Bh3 {[%clk 0:00:29.9]} 21... h5 {[%clk 0:01:21.3]} 22. Bxc5 {[%clk 0:00:29]}
22... bxc5 {[%clk 0:01:19.3]} 23. Be6+ {[%clk 0:00:26.4]} 23... Kh7 {[%clk
0:01:19.5]} 24. Nxh5 {[%clk 0:00:20.2]} 24... gxh5 {[%clk 0:01:19.6]} 25. Rxh5+
{[%clk 0:00:18.7]} 25... Bh6+ {[%clk 0:01:12.9]} 26. Kc2 {[%clk 0:00:14]} 26...
Rxf3 {[%clk 0:01:12.4]} 27. Qb7+ {[%clk 0:00:12.2]} 27... Nd7 {[%clk 0:01:08.3]}
28. Bxd7 {[%clk 0:00:10.9]} 28... Bb3+ {[%clk 0:01:07.6]} 29. Kb1 {[%clk
0:00:09.3]} 29... Rf7 {[%clk 0:00:24.2]} 30. Bf5+ {[%clk 0:00:08.1]} 30... Kg7
{[%clk 0:00:21.9]} 31. Rg1+ {[%clk 0:00:07.5]} 31... Kf8 {[%clk 0:00:22.2]} 32.
Qxb3 {[%clk 0:00:05.7]} 32... Bg7 {[%clk 0:00:20.8]} 33. Rh7 {[%clk 0:00:04.6]}
33... a4 {[%clk 0:00:20.4]} 34. Qxa4 {[%clk 0:00:03.9]} 34... c4 {[%clk
0:00:16.3]} 35. Rhxg7 {[%clk 0:00:03.5]} 35... Rxg7 {[%clk 0:00:16.4]} 36. Rxg7
{[%clk 0:00:04]} 36... Kxg7 {[%clk 0:00:17.3]} 37. Qxc4 {[%clk 0:00:04.2]} 37...
Qg5 {[%clk 0:00:16]} 38. Qc7+ {[%clk 0:00:04.1]} 38... Kh6 {[%clk 0:00:15.6]}
39. Qxd6+ {[%clk 0:00:03.6]} 39... Kh5 {[%clk 0:00:14.7]} 40. Qxe5 {[%clk
0:00:03.5]} 40... Qg1+ {[%clk 0:00:12.6]} 41. Ka2 {[%clk 0:00:03.5]} 41... Qa7+
{[%clk 0:00:12.6]} 42. Kb3 {[%clk 0:00:03.4]} 42... Qb8+ {[%clk 0:00:10.7]} 43.
Qxb8 {[%clk 0:00:02.9]} 43... Kg5 {[%clk 0:00:08.9]} 44. Qg8+ {[%clk 0:00:02.8]}
44... Kh6 {[%clk 0:00:07.3]} 45. Qg6# {[%clk 0:00:02.9]} 1-0

[Event "Late-Titled-Tuesday-Blitz-June-25-2024"]
[Site "Chess.com"]
[Date "2024.06.25"]
[Round "6"]
[White "josiur"]
[Black "kubal123"]
[Result "1-0"]
[WhiteElo "2470"]
[BlackElo "2288"]
[TimeControl "180+1"]
[EndTime "15:05:45 PDT"]
[Termination "josiur won on time"]

1. e4 {[%clk 0:03:00.9]} 1... c5 {[%clk 0:02:59.1]} 2. c3 {[%clk 0:02:59.9]}
2... Nf6 {[%clk 0:02:56.6]} 3. e5 {[%clk 0:03:00.1]} 3... Nd5 {[%clk 0:02:57.2]}
4. Nf3 {[%clk 0:03:00.1]} 4... e6 {[%clk 0:02:56.8]} 5. Bc4 {[%clk 0:02:59.8]}
5... d6 {[%clk 0:02:54.3]} 6. O-O {[%clk 0:02:58.2]} 6... Nb6 {[%clk 0:02:53.5]}
7. Bb3 {[%clk 0:02:57.4]} 7... Nc6 {[%clk 0:02:34.8]} 8. exd6 {[%clk 0:02:55.1]}
8... Bxd6 {[%clk 0:02:35.7]} 9. d4 {[%clk 0:02:55.4]} 9... O-O {[%clk
0:02:35.3]} 10. Bg5 {[%clk 0:02:46.2]} 10... Qc7 {[%clk 0:02:13.9]} 11. h3
{[%clk 0:02:43.7]} 11... cxd4 {[%clk 0:02:11.7]} 12. cxd4 {[%clk 0:02:41.8]}
12... Bf4 {[%clk 0:02:04.6]} 13. Bh4 {[%clk 0:02:39.6]} 13... Bd7 {[%clk
0:02:03.1]} 14. Nc3 {[%clk 0:02:38.9]} 14... Na5 {[%clk 0:01:52.4]} 15. Bc2
{[%clk 0:02:38.2]} 15... Nac4 {[%clk 0:01:48.5]} 16. Qd3 {[%clk 0:02:20.5]}
16... g6 {[%clk 0:01:45.8]} 17. Rab1 {[%clk 0:02:19]} 17... Rac8 {[%clk
0:01:44]} 18. Ne4 {[%clk 0:02:16.2]} 18... Bb5 {[%clk 0:01:35.3]} 19. Nf6+
{[%clk 0:02:14]} 19... Kh8 {[%clk 0:01:34.4]} 20. Qe4 {[%clk 0:02:06]} 20... Bh6
{[%clk 0:01:15.4]} 21. Bg3 {[%clk 0:02:03]} 21... Qe7 {[%clk 0:01:14.8]} 22. Ng4
{[%clk 0:01:58.2]} 22... Bg7 {[%clk 0:01:14.3]} 23. Ne3 {[%clk 0:01:14.5]} 23...
Nxe3 {[%clk 0:01:10]} 24. fxe3 {[%clk 0:01:09.2]} 24... Bxf1 {[%clk 0:01:09.9]}
25. Rxf1 {[%clk 0:01:09.4]} 25... Nd5 {[%clk 0:01:03.8]} 26. Bb3 {[%clk
0:01:03.6]} 26... Nf6 {[%clk 0:00:43]} 27. Qh4 {[%clk 0:00:59.8]} 27... Kg8
{[%clk 0:00:24.5]} 28. Ng5 {[%clk 0:00:54.2]} 28... h6 {[%clk 0:00:13.6]} 29.
Ne4 {[%clk 0:00:53.8]} 29... g5 {[%clk 0:00:11.5]} 30. Nxf6+ {[%clk 0:00:53.7]}
30... Qxf6 {[%clk 0:00:09.7]} 31. Qe4 {[%clk 0:00:44.2]} 31... Qg6 {[%clk
0:00:09.6]} 32. Qxb7 {[%clk 0:00:43.8]} 32... Kh7 {[%clk 0:00:04.5]} 33. Qxa7
{[%clk 0:00:43.2]} 33... Qe4 {[%clk 0:00:02]} 34. Bf2 {[%clk 0:00:41.7]} 34...
Qd3 {[%clk 0:00:01.9]} 35. Rd1 {[%clk 0:00:33.1]} 35... Qe4 {[%clk 0:00:02.5]}
36. Qa4 {[%clk 0:00:24.2]} 36... g4 {[%clk 0:00:02.8]} 37. hxg4 {[%clk
0:00:20.1]} 37... Qxg4 {[%clk 0:00:03.7]} 38. Bc2+ {[%clk 0:00:20]} 38... Kh8
{[%clk 0:00:04.3]} 39. Qb3 {[%clk 0:00:19.3]} 39... Rb8 {[%clk 0:00:03.8]} 40.
Qd3 {[%clk 0:00:19.3]} 40... Qf5 {[%clk 0:00:02.7]} 41. Qxf5 {[%clk 0:00:16.9]}
41... exf5 {[%clk 0:00:03.6]} 42. Bxf5 {[%clk 0:00:17.3]} 42... Rxb2 {[%clk
0:00:04.1]} 43. a4 {[%clk 0:00:17.8]} 43... Ra8 {[%clk 0:00:03.7]} 44. Bd7
{[%clk 0:00:17.5]} 44... Bf6 {[%clk 0:00:02.5]} 45. e4 {[%clk 0:00:16.1]} 45...
Rc2 {[%clk 0:00:01.8]} 46. e5 {[%clk 0:00:15.8]} 46... Be7 {[%clk 0:00:01.8]}
47. d5 {[%clk 0:00:15.6]} 47... Rb8 {[%clk 0:00:02.4]} 48. d6 {[%clk 0:00:15.3]}
48... Bg5 {[%clk 0:00:03]} 49. Bb5 {[%clk 0:00:14.8]} 49... Rbc8 {[%clk
0:00:01.9]} 50. Bd4 {[%clk 0:00:14.3]} 50... Kg8 {[%clk 0:00:01.4]} 51. d7
{[%clk 0:00:13.6]} 51... Rd8 {[%clk 0:00:01.5]} 52. Bb6 {[%clk 0:00:13.8]} 1-0

[Event "Late-Titled-Tuesday-Blitz-June-25-2024"]
[Site "Chess.com"]
[Date "2024.06.25"]
[Round "6"]
[White "igorkovalenko"]
[Black "SaraBlackPanther"]
[Result "1-0"]
[WhiteElo "2998"]
[BlackElo "2740"]
[TimeControl "180+1"]
[EndTime "15:05:48 PDT"]
[Termination "igorkovalenko won on time"]

1. d4 {[%clk 0:03:00.9]} 1... Nf6 {[%clk 0:02:59.1]} 2. Bg5 {[%clk 0:03:00.4]}
2... d5 {[%clk 0:02:57.4]} 3. e3 {[%clk 0:03:00.3]} 3... c5 {[%clk 0:02:54.8]}
4. c3 {[%clk 0:03:00.6]} 4... Qb6 {[%clk 0:02:53.2]} 5. Qb3 {[%clk 0:03:00.5]}
5... c4 {[%clk 0:02:51.8]} 6. Qxb6 {[%clk 0:02:59]} 6... axb6 {[%clk 0:02:52.7]}
7. a3 {[%clk 0:02:59.2]} 7... Ne4 {[%clk 0:02:44.7]} 8. Bf4 {[%clk 0:02:58.7]}
8... Nc6 {[%clk 0:02:45.4]} 9. f3 {[%clk 0:02:58.2]} 9... Nf6 {[%clk 0:02:41.1]}
10. Nd2 {[%clk 0:02:58.2]} 10... b5 {[%clk 0:02:40.8]} 11. Rc1 {[%clk
0:02:55.9]} 11... h5 {[%clk 0:02:38.8]} 12. h4 {[%clk 0:02:55.9]} 12... Bf5
{[%clk 0:02:38.7]} 13. Nh3 {[%clk 0:02:55.3]} 13... e6 {[%clk 0:02:38.7]} 14.
Nf2 {[%clk 0:02:55.4]} 14... Nd7 {[%clk 0:02:36.8]} 15. e4 {[%clk 0:02:54.1]}
15... Bg6 {[%clk 0:02:36]} 16. Be2 {[%clk 0:02:54.3]} 16... Nb6 {[%clk
0:02:33.6]} 17. Bd1 {[%clk 0:02:54.8]} 17... Be7 {[%clk 0:02:28.8]} 18. Bg3
{[%clk 0:02:52.2]} 18... Kd7 {[%clk 0:02:21.2]} 19. Nh3 {[%clk 0:02:51.2]} 19...
f6 {[%clk 0:02:16.7]} 20. Nf4 {[%clk 0:02:48.1]} 20... Bf7 {[%clk 0:02:16.8]}
21. exd5 {[%clk 0:02:45.5]} 21... exd5 {[%clk 0:02:12.4]} 22. Bc2 {[%clk
0:02:45.6]} 22... Bd6 {[%clk 0:02:10.8]} 23. Kf2 {[%clk 0:02:41.2]} 23... Kc7
{[%clk 0:01:50.8]} 24. Nf1 {[%clk 0:02:40.7]} 24... g5 {[%clk 0:01:44.3]} 25.
Ne2 {[%clk 0:02:35.4]} 25... Na4 {[%clk 0:01:18.2]} 26. Bxa4 {[%clk 0:02:35.2]}
26... bxa4 {[%clk 0:01:17]} 27. Ne3 {[%clk 0:02:34.9]} 27... Rae8 {[%clk
0:01:11]} 28. Rce1 {[%clk 0:02:30.8]} 28... Ne7 {[%clk 0:01:03.9]} 29. Bxd6+
{[%clk 0:02:21.2]} 29... Kxd6 {[%clk 0:01:04.8]} 30. Ng3 {[%clk 0:02:21.4]}
30... Bg6 {[%clk 0:01:03.2]} 31. Rh2 {[%clk 0:02:19.2]} 31... f5 {[%clk
0:00:54.9]} 32. Ne2 {[%clk 0:02:06.4]} 32... f4 {[%clk 0:00:39.3]} 33. Nf1
{[%clk 0:02:06.8]} 33... Bd3 {[%clk 0:00:39.8]} 34. hxg5 {[%clk 0:02:03.3]}
34... Ng6 {[%clk 0:00:40.4]} 35. Nc1 {[%clk 0:02:01.9]} 35... Rxe1 {[%clk
0:00:29.3]} 36. Kxe1 {[%clk 0:02:02]} 36... Re8+ {[%clk 0:00:26.2]} 37. Kf2
{[%clk 0:02:02.1]} 37... h4 {[%clk 0:00:26.8]} 38. Rh1 {[%clk 0:01:58.1]} 38...
Ke6 {[%clk 0:00:22.9]} 39. Nh2 {[%clk 0:01:52]} 39... Kf5 {[%clk 0:00:22]} 40.
Rd1 {[%clk 0:01:37.8]} 40... Bc2 {[%clk 0:00:18.7]} 41. Rd2 {[%clk 0:01:38.3]}
41... Bb1 {[%clk 0:00:19.4]} 42. Ne2 {[%clk 0:01:32]} 42... Kxg5 {[%clk
0:00:15.1]} 43. Ng1 {[%clk 0:01:32.2]} 43... Bf5 {[%clk 0:00:13.1]} 44. Rd1
{[%clk 0:01:14.2]} 44... Re6 {[%clk 0:00:13]} 45. Rd2 {[%clk 0:01:13.5]} 45...
Nf8 {[%clk 0:00:11.4]} 46. Nh3+ {[%clk 0:01:02.7]} 46... Bxh3 {[%clk 0:00:11.3]}
47. gxh3 {[%clk 0:01:03.6]} 47... Nd7 {[%clk 0:00:08.7]} 48. Kf1 {[%clk
0:01:02.3]} 48... Nf6 {[%clk 0:00:05.9]} 49. Rg2+ {[%clk 0:01:02.4]} 49... Kf5
{[%clk 0:00:06.5]} 50. Ng4 {[%clk 0:01:00.2]} 50... Nh5 {[%clk 0:00:05.9]} 51.
Ne5 {[%clk 0:00:55.7]} 51... Ng3+ {[%clk 0:00:05.3]} 52. Ke1 {[%clk 0:00:55.9]}
52... Re8 {[%clk 0:00:03.3]} 53. Kd1 {[%clk 0:00:53.5]} 53... Re6 {[%clk
0:00:03.9]} 54. Rg1 {[%clk 0:00:53.1]} 54... Re8 {[%clk 0:00:04.4]} 55. Re1
{[%clk 0:00:52.5]} 55... Re6 {[%clk 0:00:05.1]} 56. Nd7 {[%clk 0:00:47.5]} 56...
Rxe1+ {[%clk 0:00:02.9]} 57. Kxe1 {[%clk 0:00:48.4]} 57... b5 {[%clk 0:00:02]}
58. Nc5 {[%clk 0:00:37.5]} 58... Kf6 {[%clk 0:00:01.3]} 59. Na6 {[%clk
0:00:33.4]} 1-0